[Event "GCT 11th Sinquefield Cup 2024"]
[Site "Saint Louis"]
[Date "2024.08.21"]
[Round "3.3"]
[White "Ding, Liren"]
[Black "So, Wesley"]
[Result "1/2-1/2"]
[ECO "C54"]
[WhiteElo "2745"]
[BlackElo "2751"]
[Annotator "TA"]
[PlyCount "97"]
[EventDate "2024.08.09"]
[EventType "tourn"]
[EventCountry "USA"]
[SourceTitle "playchess.com"]
[Source "ChessBase"]
[SourceQuality "1"]
[TimeControl "7200+30"]

{[%evp 11,97,14,22,7,23,32,41,37,38,0,30,46,33,36,44,31,35,35,25,12,28,8,16,12,20,31,32,35,25,23,80,47,53,52,179,175,190,60,65,64,68,22,65,0,0,0,0,0,0,-26,-28,-22,-16,-29,-22,-20,-16,-16,-24,-32,-32,-39,-39,-38,-38,-35,-30,-40,-27,-38,-31,-38,-38,-38,-38,-38,-38,-41,0,0,0,0,0,0,0,0,0,0]} 1. e4 {[%emt 0:00:05]} e5 {[%emt 0:00:33]} 2. Nf3 {[%emt 0:00:06]} Nc6 {[%emt 0:00:04]} 3. Bc4 {[%emt 0:00:05]} Bc5 {[%emt 0:00:44]} 4. c3 {[%emt 0:00:10]} Nf6 {[%emt 0:00:05]} 5. d3 {[%emt 0:00:03]} d6 {[%emt 0:00:05]} 6. O-O {[%emt 0:00:06]} a6 {[%emt 0:00:39]} 7. Bg5 {[%emt 0:05:30][%cal Bc1g5,Bg5h4,Bh4g3][%mdl 32]} h6 {[%emt 0:00:35]} 8. Bh4 {[%emt 0:00:03]} Ba7 {[%emt 0:00:34]} 9. Nbd2 {[%emt 0:00:05] White is slightly better.} Qe7 {[%emt 0:00:05]} 10. Re1 {[%emt 0:00:21][%cal Od3d4]} O-O {[%emt 0:07:12]} (10... g5 $5 11. Bg3 $8 g4 $11) 11. Bb3 {[%emt 0:11:34]} g5 {[%emt 0:05:33]} 12. Bg3 {[%emt 0:00:09]} g4 {[%emt 0:21:12]} 13. Nh4 {[%emt 0:22:47] Hoping for Ng6.} Nh5 {[%emt 0:05:12]} 14. Nf1 {[%emt 0:00:11]} Qg5 {[%emt 0:22:39]} 15. Ne3 {[%emt 0:00:31]} Bd7 {[%emt 0:00:12]} 16. Rc1 {[%emt 0:09:06]} Ne7 {[%emt 0:02:11]} 17. d4 {[%emt 0:00:43]} Rad8 {[%emt 0:03:14]} 18. Rc2 {[%emt 0:00:11]} Nxg3 {[%emt 0:05:43]} 19. hxg3 {[%emt 0:01:11]} h5 {[%emt 0:00:04]} 20. Rd2 {[%emt 0:00:20]} Kg7 {[%emt 0:00:46]} (20... exd4 $11 21. cxd4 Bb6) 21. Kh2 {[%emt 0:05:01]} Rh8 {[%emt 0:00:51]} 22. dxe5 {[%emt 0:09:38]} Qxe5 {[%emt 0:01:20] [#]} (22... Bxe3 $1 $14 23. Rxe3 Qxe5) 23. f4 $1 $18 {[%emt 0:00:06]} gxf3 {[%emt 0:06:49]} 24. gxf3 {[%emt 0:04:45]} (24. Qxf3 $6 Rhf8 $14) ({White must play} 24. Nxf3 $18 Qa5 25. e5 Bxe3 26. Rxe3) 24... Kf8 {[%emt 0:00:59]} 25. f4 $1 {[%emt 0:16:28]} Qg7 {[%emt 0:00:52]} (25... Qxe4 $2 26. Nd5 $18) 26. Qf3 {[%emt 0:04:12]} (26. e5 $14 Rg8 27. Nf1 (27. Qxh5 Qxg3+ 28. Kh1 Qxe1+)) 26... Rg8 {[%emt 0:03:41]} 27. Nef5 {[%emt 0:04:11] Active counter play!} (27. Qxh5 {is a self mate.} Qxg3+ 28. Kh1 Qxe1+) ({White should try} 27. e5 $14 Bc5 28. e6 (28. Qxh5 Qxg3+ 29. Kh1 Qxe1+) 28... fxe6 29. f5) 27... Nxf5 $1 $11 {[%emt 0:01:45]} 28. Nxf5 {[%emt 0:00:04]} Bxf5 {[%emt 0:02:21]} (28... Qg4 {looks sharper.} 29. Bd1 Re8 30. Qg2 Qxf5 31. exf5 Rxe1 32. Qxb7 Bg1+) 29. exf5 {[%emt 0:00:04][%cal Od2e2]} h4 {[%emt 0:01:20]} 30. Rg2 {[%emt 0:00:07] [#] Threatens to win with g4.} hxg3+ {[%emt 0:02:54]} 31. Rxg3 {[%emt 0:00:04]} Qxg3+ {[%emt 0:00:05]} (31... Qh7+ {seems wilder.} 32. Kg2 d5 33. Rxg8+ Qxg8+ 34. Qg3 Qxg3+ 35. Kxg3 c6) 32. Qxg3 {[%emt 0:00:03]} Rxg3 {[%emt 0:00:04]} 33. Kxg3 {[%emt 0:00:03]} Re8 {[%emt 0:00:07] Inhibits f6.} 34. Rxe8+ {[%emt 0:00:03]} Kxe8 {[%emt 0:00:03][%mdl 4096] Endgame. KB-KB} 35. Kf3 {[%emt 0:01:09]} Ke7 {[%emt 0:03:51]} 36. Ke4 {[%emt 0:00:07]} c6 {[%emt 0:00:04]} 37. Bd1 {[%emt 0:00:27][%cal Of5f6]} d5+ {[%emt 0:00:05]} 38. Kd3 {[%emt 0:00:03]} Kf6 {[%emt 0:00:26]} 39. Bh5 {[%emt 0:00:05]} b5 {[%emt 0:00:33]} (39... Kxf5 40. Bxf7 a5 (40... Kxf4 41. Be6 $11) 41. a3 $11) 40. b3 {[%emt 0:00:05]} a5 {[%emt 0:01:00]} 41. a4 {[%emt 0:00:13]} bxa4 {[%emt 0:00:08]} ({Much weaker is} 41... Kxf5 42. axb5 cxb5 43. Bxf7 $11) 42. bxa4 {[%emt 0:00:03]} Kxf5 {[%emt 0:00:06]} 43. Bxf7 {[%emt 0:00:03]} Kxf4 {[%emt 0:00:03]} 44. Be8 {[%emt 0:00:05]} Ke5 {[%emt 0:00:06]} 45. Bxc6 {[%emt 0:00:04] The position is equal.} Bb6 {[%emt 0:00:03]} 46. Bb5 {[%emt 0:00:03]} Ba7 {[%emt 0:00:03]} 47. Bc6 {[%emt 0:00:02]} Bb6 {[%emt 0:00:03]} 48. Bb5 {[%emt 0:00:02]} Ba7 {[%emt 0:00:03]} 49. Bc6 {[%emt 0:00:22] Weighted Error Value: White=0.12 (very precise) /Black=0.11 (very precise) .  Mistake:       	White=3     	Black=2      Inaccurate:     	White=3     	Black=3      OK:         	White=11    	Black=18     Best:        	White=1     	Black=1      Strong:       	White=2     	Black=1} 1/2-1/2

[Event "GCT 11th Sinquefield Cup 2024"]
[Site "Saint Louis"]
[Date "2024.08.21"]
[Round "3.4"]
[White "Nepomniachtchi, Ian"]
[Black "Giri, Anish"]
[Result "1-0"]
[ECO "E28"]
[WhiteElo "2767"]
[BlackElo "2746"]
[Annotator "TA"]
[PlyCount "73"]
[EventDate "2024.08.09"]
[EventType "tourn"]
[EventCountry "USA"]
[SourceTitle "playchess.com"]
[Source "ChessBase"]
[SourceQuality "1"]
[TimeControl "7200+30"]

{[%evp 11,73,-16,-12,-47,-46,-42,-30,-84,-81,-74,-85,-112,-109,-116,-99,-106,-114,-110,-117,-107,-106,-115,-100,-141,0,0,0,0,0,0,0,0,0,0,0,0,165,165,651,664,662,660,1550,1240,650,616,3724,3275,2283,2439,2008,1758,1995,1680,29983,29984,29991,29992,29992,29993,29993,29994,29994,29995]} 1. d4 {[%emt 0:00:11]} Nf6 {[%emt 0:00:05]} 2. c4 {[%emt 0:00:04]} e6 {[%emt 0:00:04]} 3. Nc3 {[%emt 0:00:05]} Bb4 {[%emt 0:00:05]} 4. e3 {[%emt 0:00:05]} O-O {[%emt 0:00:12]} 5. a3 {[%emt 0:00:03]} Bxc3+ {[%emt 0:00:14]} 6. bxc3 {[%emt 0:00:02]} d6 {[%emt 0:00:37]} 7. f3 {[%emt 0:00:05]} Nc6 {[%emt 0:06:22]} 8. e4 {[%emt 0:03:39]} Qe8 {[%emt 0:01:59]} 9. h4 {[%emt 0:15:39]} (9. Ne2 $11) 9... b6 $17 {[%emt 0:08:14]} 10. h5 {[%emt 0:00:26][%cal Oc4c5]} Ba6 {[%emt 0:00:32]} 11. Ra2 {[%emt 0:00:53]} Na5 {[%emt 0:03:24]} 12. g4 {[%emt 0:00:14]} Qc6 {[%emt 0:22:42]} (12... Nxc4 $6 13. g5 Nd7 14. Nh3 $11) 13. Rg2 {[%emt 0:01:17]} Bxc4 {[%emt 0:00:54]} 14. Bxc4 {[%emt 0:01:14]} Qxc4 {[%emt 0:00:05]} 15. Ne2 {[%emt 0:00:06]} Nd7 {[%emt 0:12:33]} 16. g5 {[%emt 0:00:46]} e5 {[%emt 0:22:59]} 17. g6 {[%emt 0:22:55]} fxg6 {[%emt 0:01:00]} ({Black should try} 17... h6 $1 $17 {...f5 would now be deadly.} 18. Bxh6 gxh6) 18. hxg6 $11 {[%emt 0:00:31]} Rxf3 {[%emt 0:07:05] Strongly threatening ...Raf8.} 19. gxh7+ {[%emt 0:21:51]} Kh8 {[%emt 0:00:03] White must now prevent ...Raf8.} 20. Rhg1 {[%emt 0:00:10]} Rf7 {[%emt 0:06:58]} (20... Kxh7 $2 21. Rxg7+ Kh8 22. Rxd7 $18) 21. Bh6 $1 {[%emt 0:00:30] Some like it hot} gxh6 {[%emt 0:00:04]} 22. Rg8+ {[%emt 0:00:06]} Kxh7 {[%emt 0:00:03]} 23. Rxa8 {[%emt 0:00:06]} Nf6 $2 {[%emt 0:10:03]} (23... Qc6 $11 24. Rxa7 Nf6) 24. dxe5 $1 $18 {[%emt 0:07:31]} Nxe4 {[%emt 0:00:55]} (24... Qxe4 $2 {is the wrong capture.} 25. exf6 (25. Rxa7 $2 dxe5 26. Rxa5 bxa5 $19) 25... Qxa8 26. Qa4 $18) (24... Nd7 25. Qd2 (25. exd6 Ne5 $11) 25... Qxe4 (25... Nxe5 26. Rh8+ Kxh8 27. Qxh6+ Rh7 28. Qf8+)) 25. Qc1 $1 {[%emt 0:02:44][%cal Oa8h8] White wants to mate with Rh8+!} Ng5 {[%emt 0:13:15] [#]} 26. Rxg5 {[%emt 0:00:52]} Qh4+ {[%emt 0:00:04]} 27. Rg3 {[%emt 0:00:06][%cal Bg5g3,Bg3g1,Bg1h1][%mdl 32] Qb1+ would kill now.} Qh1+ {[%emt 0:00:02]} 28. Rg1 {[%emt 0:00:04] Threatening mate with Qb1+.} Qxa8 {[%emt 0:00:03]} 29. Qc2+ {[%emt 0:00:07]} Kh8 {[%emt 0:00:01]} 30. Qg6 $1 {[%emt 0:00:15][%csl LRd6,LRf7,LRh6]} Qf8 {[%emt 0:00:07] [#]} 31. e6 $1 {[%emt 0:00:46]} ({Weaker is} 31. Rh1 Rh7 $11) 31... Re7 {[%emt 0:01:46]} 32. Rh1 {[%emt 0:00:09]} Rh7 {[%emt 0:00:52]} 33. Rf1 {[%emt 0:00:12][%cal Rf1f8] White mates.} Qd8 {[%emt 0:02:04]} 34. Rf7 {[%emt 0:00:09]} Rxf7 {[%emt 0:01:13]} 35. exf7 {[%emt 0:00:02][%cal Rg6h6]} Qf8 {[%emt 0:00:19]} 36. Qf6+ {[%emt 0:00:04]} Kh7 {[%emt 0:00:02]} 37. Nf4 {[%emt 0:00:06] Weighted Error Value: White=0.08 (flawless) /Black=0.41.  Loses game:     	---       	Black=1      Mistake:       	White=1     	Black=2      Inaccurate:     	White=2     	---        OK:         	White=5     	Black=10     Best:        	White=1     	Black=2      Strong:       	White=3     	---} 1-0

[Event "GCT 11th Sinquefield Cup 2024"]
[Site "Saint Louis"]
[Date "2024.08.21"]
[Round "3.5"]
[White "Caruana, Fabiano"]
[Black "Abdusattorov, Nodirbek"]
[Result "1-0"]
[ECO "C55"]
[WhiteElo "2793"]
[BlackElo "2762"]
[Annotator "TA"]
[PlyCount "95"]
[EventDate "2024.08.09"]
[EventType "tourn"]
[EventCountry "USA"]
[SourceTitle "playchess.com"]
[Source "ChessBase"]
[SourceQuality "1"]
[TimeControl "7200+30"]

{[%evp 14,95,32,31,36,36,39,24,26,23,26,21,35,18,21,27,37,14,33,33,36,35,46,24,29,16,21,17,20,0,0,0,18,0,0,0,0,0,0,0,0,0,0,0,-12,-25,-39,-79,0,-82,-78,-87,-64,-80,-74,-102,-29,-73,-41,-34,-50,-68,-61,-83,0,0,0,0,60,39,55,28,472,461,847,877,5443,5687,6099,6007,29985,6179,6179,5585]} 1. e4 {[%emt 0:00:05]} e5 {[%emt 0:00:35]} 2. Nf3 {[%emt 0:00:06]} Nc6 {[%emt 0:00:13]} 3. Bc4 {[%emt 0:00:07]} Nf6 {[%emt 0:00:26]} 4. d3 {[%emt 0:00:04]} Be7 {[%emt 0:00:27]} 5. O-O {[%emt 0:00:09]} O-O {[%emt 0:00:06]} 6. Re1 {[%emt 0:00:08]} d6 {[%emt 0:01:47]} 7. a4 {[%emt 0:00:16]} Be6 {[%emt 0:02:23]} 8. Nbd2 {[%emt 0:00:20]} Bxc4 {[%emt 0:04:51]} 9. Nxc4 {[%emt 0:00:14]} a5 {[%emt 0:00:02]} 10. Bg5 {[%emt 0:11:07]} Nd7 {[%emt 0:02:18] White has an edge.} 11. Bxe7 {[%emt 0:15:23]} Qxe7 {[%emt 0:08:58]} 12. d4 {[%emt 0:01:59]} exd4 {[%emt 0:02:55]} 13. Nxd4 {[%emt 0:00:22]} Nxd4 {[%emt 0:00:52]} 14. Qxd4 {[%emt 0:00:04]} Rfe8 {[%emt 0:03:14]} 15. Qd2 {[%emt 0:12:42]} Qh4 {[%emt 0:25:29]} 16. f3 {[%emt 0:04:43]} Re6 {[%emt 0:00:30]} 17. Ne3 {[%emt 0:02:20]} Qg5 {[%emt 0:02:53]} 18. Rad1 {[%emt 0:03:30]} Qc5 {[%emt 0:02:23]} 19. Kh1 {[%emt 0:01:35]} Rae8 {[%emt 0:00:33]} 20. b3 {[%emt 0:02:10]} Nf6 {[%emt 0:05:33]} 21. Nf5 {[%emt 0:07:13]} g6 {[%emt 0:02:02]} 22. Ne3 {[%emt 0:06:52]} b6 {[%emt 0:02:55]} 23. c4 {[%emt 0:03:36]} Qg5 {[%emt 0:03:08][%cal Of6e4] ...Nxe4! is the strong threat.} 24. Qf2 {[%emt 0:03:32]} Nd7 {[%emt 0:05:54]} 25. Nd5 {[%emt 0:05:36]} Qd8 {[%emt 0:00:02]} 26. g4 {[%emt 0:10:05]} Re5 {[%emt 0:05:14]} 27. Re3 {[%emt 0:15:19]} Nc5 {[%emt 0:08:37]} 28. Qg3 {[%emt 0:06:46]} h5 {[%emt 0:03:17]} 29. h3 {[%emt 0:06:27][%cal Bh2h3,Bh3g4,Bg4g5][%mdl 32]} Kg7 {[%emt 0:02:58]} 30. Nf4 {[%emt 0:04:38]} Rh8 {[%emt 0:06:58]} (30... hxg4 $17 31. hxg4 Rh8+ 32. Kg2 Ree8) 31. Kg2 {[%emt 0:03:40]} (31. gxh5 $11 {keeps the balance.} Rg5 32. Qh2) 31... hxg4 $17 {[%emt 0:01:02]} 32. hxg4 {[%emt 0:00:03]} Ree8 {[%emt 0:01:26]} 33. Ree1 {[%emt 0:05:15][%cal Oe4e5]} Qf6 {[%emt 0:03:06]} 34. Rh1 {[%emt 0:00:01]} c6 {[%emt 0:01:18] Prevents Nd5} (34... Rxh1 $17 35. Rxh1 Qb2+ (35... Nxb3 36. Nd5 $17) 36. Qf2 Qxf2+ (36... Qxb3 37. Nd5 $11) 37. Kxf2 Nxb3) 35. Nh3 {[%emt 0:00:51]} Rd8 {[%emt 0:06:37][%cal Oc5e6]} (35... Nxb3 36. Rxd6 Qb2+ 37. Qf2 $15) 36. g5 $1 {[%emt 0:00:26]} Qb2+ {[%emt 0:06:12]} 37. Nf2 {[%emt 0:00:02]} Rxh1 {[%emt 0:02:51]} (37... Qxb3 38. Rxd6 Qb2 39. Rb1 $11) (37... Nxb3 38. Rxh8 Rxh8 39. Rxd6 $11 (39. Qxd6 Nc5 $11)) 38. Rxh1 {[%emt 0:00:02] [#]} d5 {[%emt 0:00:19]} (38... Qxb3 $2 39. Qh4 Qb2 (39... Qxc4 40. Qh6+ Kg8 41. Qh8#) 40. e5 Qxe5 (40... dxe5 41. Qh6+ Kg8 42. Qh8#) 41. Qh6+ Kg8 42. Ng4 $18) (38... Nxb3 $6 39. Qh3 Kf8 40. f4 $11) (38... Kf8 $1 $17) 39. cxd5 {[%emt 0:00:38]} cxd5 {[%emt 0:00:06]} (39... Nxb3 $2 40. Qh2 (40. dxc6 Rd2 $18) (40. Qc7 Rh8 $18) 40... Re8 41. d6 $18 (41. dxc6 Nc5 $18)) 40. Rd1 {[%emt 0:00:45]} Nxb3 {[%emt 0:04:50]} (40... Re8 $11 41. Rxd5 Qxb3) 41. exd5 {[%emt 0:00:04] Strongly threatening Qc7.} (41. Rxd5 Rxd5 42. exd5 Nc5 $11) (41. Qc7 {feels hotter.} Rh8 42. exd5 Nc5 43. Qf4) 41... Nc5 {[%emt 0:00:54]} 42. Qf4 {[%emt 0:00:14]} Kg8 $2 {[%emt 0:00:39][%mdl 8192] [#] This move loses the game for Black.} (42... Re8 $11 {and Black stays safe.}) 43. Kg3 $1 $18 {[%emt 0:00:35] Ng4 would now be deadly.} Nb7 {[%emt 0:02:28]} (43... Kg7 $142 44. Ng4 Qc3) 44. Qc7 {[%emt 0:00:49][%cal Of2g4] Black must now prevent Ng4!} Kg7 {[%emt 0:00:01]} 45. Ng4 {[%emt 0:00:57]} Rh8 {[%emt 0:01:52]} 46. Qxb7 {[%emt 0:00:25]} Qe2 {[%emt 0:00:09] Wards off Qe7} 47. Rg1 {[%emt 0:00:32]} (47. Rb1 $142 b5 48. Qxb5 (48. Rxb5 Qe1+ 49. Kf4 Qc1+ 50. Ke5 Re8+ 51. Kd6 Rd8+ 52. Ke5 Re8+ 53. Kd6 Rd8+ 54. Ke5 Qc3+ 55. Kf4 Qd4+ 56. Kg3 Qg1+ 57. Kf4 Qd4+ 58. Kg3 Qg1+ 59. Kf4 Qd4+ $11) 48... Qxb5 49. Rxb5 Rh5 50. d6 (50. Rxa5 Rxg5 51. Rb5 Rh5 $18) 50... Rh1 51. Nf6 (51. Rxa5 Rg1+ 52. Kf4 Rb1 53. Ra8 Rb4+ 54. Kg3 f5 55. gxf6+ Kf7) 51... Rh8 52. d7 (52. Rxa5 Rf8 53. d7 Rd8 54. Re5 Kf8 55. Re8+ Kg7 56. Kf4 Rxe8 57. Nxe8+ Kf8)) 47... Qd2 {[%emt 0:02:06]} 48. Qe7 {[%emt 0:00:11] Weighted Error Value: White=0.13 (very precise) /Black=0.44.  Loses game:     	---       	Black=1      Mistake:       	White=1     	Black=5      Inaccurate:     	White=3     	Black=2      OK:         	White=9     	Black=13     Best:        	White=1     	Black=1      Strong:       	White=2     	---} 1-0

[Event "GCT 11th Sinquefield Cup 2024"]
[Site "Saint Louis"]
[Date "2024.08.22"]
[Round "4.1"]
[White "So, Wesley"]
[Black "Nepomniachtchi, Ian"]
[Result "1-0"]
[ECO "A13"]
[WhiteElo "2751"]
[BlackElo "2767"]
[Annotator "TA"]
[PlyCount "99"]
[EventDate "2024.08.09"]
[EventType "tourn"]
[EventCountry "USA"]
[SourceTitle "playchess.com"]
[Source "ChessBase"]
[SourceQuality "1"]
[TimeControl "7200+30"]

{[%evp 15,99,16,39,16,23,14,71,18,29,23,31,36,39,24,26,20,25,27,29,30,22,29,21,25,25,22,21,38,23,31,62,12,17,19,13,18,14,14,31,29,43,46,74,74,75,75,76,79,97,97,88,85,97,52,100,102,107,66,138,119,141,142,592,587,608,606,1050,1050,960,756,1188,1497,1471,976,2218,1397,1960,1585,1664,1485,29979,29980,29981,29982,29984,29985]} 1. Nf3 {[%emt 0:00:03]} d5 {[%emt 0:00:26]} 2. e3 {[%emt 0:00:07]} Nf6 {[%emt 0:00:37]} 3. c4 {[%emt 0:00:07]} e6 {[%emt 0:00:07]} 4. b3 {[%emt 0:00:09]} Be7 {[%emt 0:00:35]} 5. Bb2 {[%emt 0:00:16]} O-O {[%emt 0:00:33]} 6. Nc3 {[%emt 0:00:07]} c5 {[%emt 0:01:13] 6...c5 scores better than 6...b6.} 7. cxd5 {[%emt 0:00:05]} exd5 {[%emt 0:00:05]} 8. d4 {[%emt 0:01:15] A13: English Opening: 1...e6.} Ne4 {[%emt 0:00:14]} 9. dxc5 {[%emt 0:10:54]} Bf6 {[%emt 0:00:50]} 10. Nd4 {[%emt 0:01:43]} Qa5 {[%emt 0:00:05]} (10... Nxc5 $11 {remains equal.} 11. Be2 Ne6) 11. Rc1 {[%emt 0:05:26]} ({White should play} 11. Bd3 $16) 11... Nc6 {[%emt 0:00:17]} 12. Be2 {[%emt 0:10:01]} Nxc5 {[%emt 0:00:36]} 13. Nxc6 {[%emt 0:00:25]} bxc6 {[%emt 0:00:02]} 14. O-O {[%emt 0:00:07]} Ne4 {[%emt 0:00:18]} 15. Qc2 {[%emt 0:00:30]} Nxc3 {[%emt 0:00:11]} 16. Bxc3 {[%emt 0:00:05]} Bxc3 {[%emt 0:00:04]} 17. Qxc3 {[%emt 0:00:05]} Qxa2 {[%emt 0:00:06]} 18. Rc2 {[%emt 0:00:59]} Qa3 {[%emt 0:00:05]} 19. Ra1 {[%emt 0:00:04]} Qe7 {[%emt 0:00:29]} 20. Qxc6 {[%emt 0:00:08]} Be6 {[%emt 0:00:05]} 21. Qc5 {[%emt 0:04:07]} Qxc5 {[%emt 0:01:26]} 22. Rxc5 {[%emt 0:02:32]} Rfc8 $146 {[%emt 0:00:05]} ({Predecessor:} 22... Rab8 23. Rb5 Rxb5 24. Bxb5 Rb8 25. Rxa7 Kf8 26. Ba4 d4 27. exd4 Bxb3 28. h3 Bxa4 29. Rxa4 {½-½ Keymer,V (2726)-Duda,J (2734) Chess.com Classic Div 1 W rapid 2024 (2.1)}) 23. Rca5 {[%emt 0:04:01]} (23. Rxc8+ $14 Rxc8 24. Kf1 (24. Rxa7 Rc1+ 25. Bf1 g5 $11)) 23... Rab8 $11 {[%emt 0:03:12]} 24. Bd1 {[%emt 0:02:05]} d4 {[%emt 0:01:06]} 25. exd4 {[%emt 0:00:06]} Bxb3 {[%emt 0:00:08]} 26. Rxa7 {[%emt 0:00:39]} Bxd1 {[%emt 0:00:59]} 27. Rxd1 {[%emt 0:00:05]} Rc2 {[%emt 0:00:30]} 28. g3 {[%emt 0:00:36]} g6 {[%emt 0:00:26] [#]} 29. Rd3 $1 {[%emt 0:01:04]} Rcb2 {[%emt 0:02:27]} 30. Kg2 {[%emt 0:03:00]} R8b3 {[%emt 0:00:33]} 31. Rf3 {[%emt 0:00:52]} Rxf3 {[%emt 0:00:22]} 32. Kxf3 {[%emt 0:00:05]} Kg7 {[%emt 0:00:09]} 33. g4 {[%emt 0:01:51]} h6 {[%emt 0:01:07]} 34. Re7 {[%emt 0:03:03]} Rd2 {[%emt 0:02:24]} (34... Rb4 $14 {might be stronger.}) 35. Ke3 $16 {[%emt 0:00:13]} Rd1 {[%emt 0:00:02]} 36. Re4 {[%emt 0:00:23]} Kf6 {[%emt 0:02:07]} (36... f5 $14 37. gxf5 gxf5 38. Re7+ Kf6) 37. h4 $16 {[%emt 0:01:21]} Ra1 {[%emt 0:02:12]} 38. Kd3 {[%emt 0:14:20]} Ra2 $2 {[%emt 0:09:13][%mdl 8192]} (38... h5 $16) 39. f3 $18 {[%emt 0:13:26]} Ra3+ {[%emt 0:03:00] [#]} 40. Kc4 $1 {[%emt 0:01:22]} Rxf3 {[%emt 0:00:07]} 41. d5 {[%emt 0:00:08]} Ra3 {[%emt 0:01:45]} 42. Re8 {[%emt 0:08:50]} Ra1 {[%emt 0:03:37]} 43. d6 {[%emt 0:00:40]} Rd1 {[%emt 0:00:07]} 44. Kc5 {[%emt 0:00:03]} h5 {[%emt 0:00:03]} 45. g5+ {[%emt 0:03:56]} Kf5 {[%emt 0:00:22]} 46. Re2 {[%emt 0:00:05]} Kf4 {[%emt 0:02:03]} 47. Kc6 {[%emt 0:00:53]} Kf3 {[%emt 0:01:24]} 48. Rc2 {[%emt 0:02:29]} Rd4 {[%emt 0:00:13]} 49. d7 {[%emt 0:00:08]} Kg3 {[%emt 0:00:04]} 50. Rc5 {[%emt 0:00:12]} 1-0

[Event "GCT 11th Sinquefield Cup 2024"]
[Site "Saint Louis"]
[Date "2024.08.22"]
[Round "4.2"]
[White "Ding, Liren"]
[Black "Caruana, Fabiano"]
[Result "1/2-1/2"]
[ECO "D38"]
[WhiteElo "2745"]
[BlackElo "2793"]
[Annotator "TA"]
[PlyCount "101"]
[EventDate "2024.08.09"]
[EventType "tourn"]
[EventCountry "USA"]
[SourceTitle "playchess.com"]
[Source "ChessBase"]
[SourceQuality "1"]
[TimeControl "7200+30"]

{[%evp 11,101,14,14,0,12,0,4,0,0,0,0,0,5,0,0,0,4,0,10,0,11,15,20,10,16,22,39,22,39,51,45,39,38,37,62,59,63,63,62,68,61,61,67,62,72,73,81,79,78,77,83,87,88,70,79,78,92,88,118,118,140,104,100,70,70,70,70,44,44,44,44,44,44,44,44,44,44,44,70,70,70,70,70,70,70,70,70,0,70,0,70,0]} 1. d4 {[%emt 0:00:10]} Nf6 {[%emt 0:00:04]} 2. c4 {[%emt 0:00:04]} e6 {[%emt 0:00:08]} 3. Nf3 {[%emt 0:00:05]} d5 {[%emt 0:00:04]} 4. Nc3 {[%emt 0:00:06]} Bb4 {[%emt 0:00:03]} 5. Qa4+ {[%emt 0:00:17]} Nc6 {[%emt 0:00:05]} 6. e3 {[%emt 0:00:03]} O-O {[%emt 0:00:10]} 7. Qc2 {[%emt 0:00:02]} b6 {[%emt 0:00:31]} 8. Bd2 {[%emt 0:00:20]} Bb7 {[%emt 0:01:01]} 9. a3 {[%emt 0:01:44] The position is equal.} Bd6 {[%emt 0:00:38]} 10. cxd5 {[%emt 0:01:29]} exd5 {[%emt 0:00:06]} 11. Nb5 {[%emt 0:00:03]} Be7 {[%emt 0:09:54]} 12. Bd3 {[%emt 0:01:01]} a6 {[%emt 0:00:16]} 13. Nc3 {[%emt 0:00:05]} Bd6 {[%emt 0:00:08]} 14. O-O {[%emt 0:00:25]} Re8 {[%emt 0:00:13]} 15. b4 {[%emt 0:05:43][%cal Bb2b4,Bb4b5][%mdl 32]} Nb8 {[%emt 0:00:25][%cal Bc6b8,Bb8d7,Bd7f6,Bf6g4][%mdl 32]} 16. Rfb1 {[%emt 0:09:33]} Ne4 {[%emt 0:01:03]} 17. b5 {[%emt 0:10:03]} a5 {[%emt 0:12:08]} 18. a4 {[%emt 0:14:49]} Nd7 {[%emt 0:00:27]} 19. Bc1 {[%emt 0:00:47]} Qe7 {[%emt 0:03:25]} 20. Qb3 {[%emt 0:00:09]} Ndf6 {[%emt 0:05:36]} 21. Ra2 {[%emt 0:00:41]} Rac8 {[%emt 0:23:07]} 22. Ba3 {[%emt 0:06:53]} Ng4 {[%emt 0:03:03] [#] aiming for ...Nexf2.} 23. Bxd6 $1 {[%emt 0:10:44]} (23. Nxd5 $2 {loses.} Bxd5 24. Qxd5 Nexf2 $19 (24... Bxa3 $2 25. Qxe4 Qxe4 26. Bxe4 $18)) 23... cxd6 {[%emt 0:01:46]} 24. Nd1 {[%emt 0:00:04]} (24. Nxd5 $2 {is the wrong capture.} Bxd5 25. Qxd5 Ngxf2 26. Bxe4 Nxe4 $19) 24... g6 {[%emt 0:06:54]} 25. Qa3 {[%emt 0:06:29]} Ngf6 {[%emt 0:11:57]} 26. Rc1 {[%emt 0:01:07]} Rxc1 {[%emt 0:00:15]} 27. Qxc1 {[%emt 0:00:03]} Rc8 {[%emt 0:00:03]} 28. Rc2 {[%emt 0:00:07]} Rxc2 {[%emt 0:00:04]} 29. Qxc2 {[%emt 0:00:07]} Kg7 {[%emt 0:00:17]} 30. Nd2 {[%emt 0:14:24]} Nxd2 {[%emt 0:00:36]} 31. Qxd2 {[%emt 0:00:02]} h5 {[%emt 0:00:19]} 32. f3 {[%emt 0:00:29]} h4 {[%emt 0:15:09]} 33. Nc3 {[%emt 0:00:07]} Nh7 {[%emt 0:01:48]} 34. Kf2 {[%emt 0:03:56] White is more active.} f5 {[%emt 0:02:39]} 35. Ne2 {[%emt 0:01:16]} Nf6 {[%emt 0:00:20]} 36. Qc1 {[%emt 0:01:53]} Nh5 {[%emt 0:01:25]} 37. Nf4 {[%emt 0:01:41]} Nxf4 {[%emt 0:00:51]} 38. exf4 $14 {[%emt 0:00:04][%mdl 4096] Endgame. KQB-KQB} Qd8 {[%emt 0:01:41]} 39. Bb1 {[%emt 0:00:43]} Qc8 {[%emt 0:00:40]} 40. Qxc8 {[%emt 0:06:20]} Bxc8 {[%emt 0:00:14] KB-KB} 41. g3 {[%emt 0:00:03]} hxg3+ {[%emt 0:00:05]} 42. hxg3 {[%emt 0:00:03]} Be6 {[%emt 0:00:12]} 43. Kg2 {[%emt 0:00:04]} Kf6 {[%emt 0:00:13]} 44. Kh3 {[%emt 0:00:05]} Bf7 {[%emt 0:00:08]} 45. Kh4 {[%emt 0:00:03]} Be6 {[%emt 0:00:03]} 46. Bd3 {[%emt 0:00:04]} Bf7 {[%emt 0:00:04]} 47. g4 {[%emt 0:00:06]} Be8 {[%emt 0:00:26]} 48. Bc2 {[%emt 0:00:14]} Bf7 {[%emt 0:00:04]} 49. Bd3 {[%emt 0:00:12]} Be8 {[%emt 0:00:03]} 50. Bc2 {[%emt 0:00:07]} Bf7 {[%emt 0:00:03]} 51. Bd3 {[%emt 0:00:38] Weighted Error Value: White=0.07 (flawless) /Black=0.05 (flawless) .  Mistake:       	White=1     	---        Inaccurate:     	White=1     	Black=2      OK:         	White=16    	Black=14     Best:        	---       	Black=2      Strong:       	White=1     	---} (51. Kg3 $14) 1/2-1/2